Workbook

Sheet 7.2
R1: A CLASSIFICATION OF CHART TYPES
AO3: Data-driven
R4: Point comparison charts | AC4: Data reduction charts | AO4: annotations
A6: Comparação | R6: Ordering and Ranking | W6: Composition | Z6: Distribution | AC6: Trend | AF6: Relationship | AI6: Profiling | AO6: Alerts/Exceptions
A8: P1 | B8: 43.69791401 | R8: Columns | T8: Bars | W8: Pie | Z8: Histogram | AC8: Line | AF8: Scatter Plot | AI8: Grouped Bars | AO8: Dot
A9: P8 | B9: 48.15078713
A10: P6 | B10: 57.00734569
A11: P5 | B11: 71.81963692
A12: P2 | B12: 73.25087023
A13: P3 | B13: 75.30614836
A14: P7 | B14: 82.33310274 | AF14: Connected
A15: P4 | B15: 88.52014192 | R15: Dot Plot | T15: Bullet | W15: Stacked Bar | Z15: Strip Plot | AC15: Horizon | AF15: Scatter Plot | AI15: Cycle Plot | AL15: Scatter Plot Matrix | AO15: Variation Band
A17: 1 | B17: 43.69791401 | C17: 48.00518196 | D17: 1 | E17: 98.00518196
A18: 2 | B18: 48.15078713 | C18: 53.0396298 | D18: 2 | E18: 103.0396298
A19: 3 | B19: 57.00734569 | C19: 57.28008826 | D19: 3 | E19: 107.2800883
A20: 4 | B20: 71.81963692 | C20: 71.55406809 | D20: 4 | E20: 121.5540681
A21: 5 | B21: 73.25087023 | C21: 71.28551606 | D21: 6 | E21: 121.2855161 | AI21: Reorderable | AO21: Context
A22: 6 | B22: 75.30614836 | C22: 71.40823801 | D22: 7 | E22: 121.408238 | R22: Strip Plot | T22: Slope | W22: Pareto | Z22: Boxplot | AC22: Step | AF22: Bubble | AI22: Matrix | AL22: Horizon
A23: 7 | B23: 82.33310274 | C23: 77.4901805 | D23: 8 | E23: 127.4901805
A24: 8 | B24: 88.52014192 | C24: 80.85401142 | D24: 9 | E24: 130.8540114
A27: 45 | B27: 1
A28: 31.8 | B28: 1 | C28: =+A28 -> 31.8 | E28: 2 | H28: =RAND() -> 0.181783654 | I28: 0.1405416919 | J28: 0.9209086466 | M28: 25 | O28: 1 | AC28: Connected
A29: 22.1 | B29: 1 | C29: =+A29+C28 -> 53.9 | E29: 3 | H29: 0.7357358285 | I29: 0.7388982159 | J29: 0.1917769865 | M29: 22.1 | O29: 1 | W29: Multilevel Pie | AC29: Scatter Plot | AF29: Treemap | AI29: Parallel Plot | AL29: Trellis
A30: 16.3 | B30: 1 | C30: 70.2 | E30: 6 | H30: 0.03150063149 | I30: 0.09767778869 | J30: 0.4433158368 | M30: 21.5 | N30: 18 | O30: 1
A31: 8.9 | B31: 1 | C31: 79.1 | E31: 8 | H31: 0.7928112565 | I31: 0.7048022995 | J31: 0.3977374722 | M31: 8.9 | O31: 1
A32: 7.3 | B32: 1 | C32: 86.4 | E32: 5 | H32: 0.6008446313 | I32: 0.3299566579 | J32: 0.681711604 | M32: 7.3 | O32: 1
A33: 6.4 | B33: 1 | C33: 92.8 | E33: 4 | H33: 0.1700097266 | I33: 0.5600641454 | J33: 0.1106744068 | M33: 6.4 | O33: 1
A34: 5.4 | B34: 1 | C34: 98.2 | E34: 2 | H34: 0.2601584162 | I34: 0.5493018835 | J34: 0.1775128818 | M34: 5.4 | O34: 1
A35: 1.8 | B35: 1 | C35: 100 | H35: 0.8635972013 | I35: 0.5978961989 | J35: 0.4074447773 | M35: 1.8 | O35: 1
H36: 0.1190912566 | I36: 0.002015840072 | J36: 0.7800268053
A38: 11.9 | B38: 5.4 | E38: 6.53774206 | F38: 4.966615489
A39: 8.4 | B39: 8.9 | E39: 2.867764332 | F39: 2.301210412
A40: 38.3 | B40: 31.8 | E40: 3.702066264 | F40: 3.320598422
A41: 8.9 | B41: 7.3 | E41: 5.966090737 | F41: 4.454243582
A42: 18.9 | B42: 22.1 | E42: 10.60133916 | F42: 21.25897097
A43: 3 | B43: 1.8 | E43: 0.9117898035 | F43: 2.597564894
A44: 6.9 | B44: 16.3 | E44: 8.19683821 | F44: 5.398650337
A45: 3.7 | B45: 6.4 | E45: 2.423278688 | F45: 1.856678687
E46: 1.406666334 | F46: 1.542471525
E47: 3.376902434 | F47: 7.351733495
A48: 10.9 | B48: =IF(A48>10,10,A48) -> 10 | C48: =IF(A48<=10,NA(),IF(AND(A48>10,A48<20),A48-10,10)) -> 0.9 | D48: =IF(A48>20,A48-20,NA()) ->  | E48: 4.660206175 | F48: 1.978076909 | H48: 16.3 | I48: =IF(H48>10,10,H48) -> 10 | J48: =IF(H48<=10,NA(),IF(AND(H48>10,H48<20),H48-10,10)) -> 6.3 | K48: =IF(H48>20,H48-20,NA()) ->  | L48: 6 | M48: 12 | O48: =NA() -> 
A49: 11 | B49: 10 | C49: 1 | E49: 2.037978565 | F49: 2.069125576 | H49: 16.2 | I49: 10 | J49: 6.2 | L49: 6 | M49: 12 | O49: =NA() -> 
A50: 10.9 | B50: 10 | C50: 0.9 | E50: 2.873944347 | F50: 0.6712607562 | H50: 16.1 | I50: 10 | J50: 6.1 | L50: 6 | M50: 12 | O50: =NA() -> 
A51: 11 | B51: 10 | C51: 1 | E51: 6.171219673 | F51: 1.74063627 | H51: 15.9 | I51: 10 | J51: 5.9 | L51: 6 | M51: 12 | O51: =NA() -> 
A52: 11.2 | B52: 10 | C52: 1.2 | E52: 2.948579904 | F52: 6.553718713 | H52: 15.8 | I52: 10 | J52: 5.8 | L52: 6 | M52: 12 | O52: =NA() -> 
A53: 11.1 | B53: 10 | C53: 1.1 | E53: 1.197258926 | F53: 0.3320598422 | H53: 15.6 | I53: 10 | J53: 5.6 | L53: 6 | M53: 12 | O53: =NA() -> 
A54: 11.1 | B54: 10 | C54: 1.1 | E54: 0.6355907024 | F54: 1.242546506 | H54: 15.4 | I54: 10 | J54: 5.4 | L54: 6 | M54: 12 | O54: =NA() -> 
A55: 11.4 | B55: 10 | C55: 1.4 | E55: 0.2978291511 | F55: 0.7033955797 | H55: 15.1 | I55: 10 | J55: 5.1 | L55: 6 | M55: 12 | O55: =NA() -> 
A56: 11.4 | B56: 10 | C56: 1.4 | E56: 3.530214328 | F56: 5.304031135 | H56: 14.9 | I56: 10 | J56: 4.9 | L56: 6 | M56: 12 | O56: =NA() -> 
A57: 11.4 | B57: 10 | C57: 1.4 | E57: 2.803824953 | F57: 1.688863498 | H57: 14.5 | I57: 10 | J57: 4.5 | L57: 6 | M57: 12 | O57: =NA() -> 
A58: 11.4 | B58: 10 | C58: 1.4 | E58: 3.424916392 | F58: 8.324704538 | H58: 14.1 | I58: 10 | J58: 4.1 | L58: 6 | M58: 12 | O58: =NA() -> 
A59: 11.4 | B59: 10 | C59: 1.4 | E59: 3.439653349 | F59: 2.48687828 | H59: 13.8 | I59: 10 | J59: 3.8 | L59: 6 | M59: 12 | O59: =NA() -> 
A60: 12.1 | B60: 10 | C60: 2.1 | E60: 1.155900369 | F60: 2.263719784 | H60: 13.5 | I60: 10 | J60: 3.5 | L60: 6 | M60: 12 | N60: =IF(A60>12,A60,NA()) -> 12.1 | O60: =NA() -> 
A61: 12 | B61: 10 | C61: 2 | E61: 3.543525128 | F61: 0.630199593 | H61: 13.3 | I61: 10 | J61: 3.3 | L61: 6 | M61: 12 | O61: =NA() -> 
A62: 12 | B62: 10 | C62: 2 | E62: 3.664035407 | F62: 0.5855678937 | H62: 13.2 | I62: 10 | J62: 3.2 | L62: 6 | M62: 12 | O62: =NA() -> 
A63: 12 | B63: 10 | C63: 2 | E63: 1.725650149 | F63: 0.5909236976 | H63: 13.1 | I63: 10 | J63: 3.1 | L63: 6 | M63: 12 | O63: =NA() -> 
A64: 12.1 | B64: 10 | C64: 2.1 | E64: 1.15352344 | F64: 0.4641696719 | H64: 13 | I64: 10 | J64: 3 | L64: 6 | M64: 12 | N64: 12.1 | O64: =NA() -> 
A65: 12 | B65: 10 | C65: 2 | E65: 5.160311948 | F65: 2.374406398 | H65: 12.9 | I65: 10 | J65: 2.9 | L65: 6 | M65: 12 | O65: =NA() -> 
A66: 12.3 | B66: 10 | C66: 2.3 | E66: 1.905821336 | F66: 4.89520477 | H66: 12.7 | I66: 10 | J66: 2.7 | L66: 6 | M66: 12 | N66: 12.3 | O66: =NA() -> 
A67: 12.4 | B67: 10 | C67: 2.4 | E67: 1.679537735 | F67: 0.05177277109 | H67: 12.7 | I67: 10 | J67: 2.7 | L67: 6 | M67: 12 | N67: 12.4 | O67: =NA() -> 
A68: 12.3 | B68: 10 | C68: 2.3 | H68: 12.5 | I68: 10 | J68: 2.5 | L68: 6 | M68: 12 | N68: 12.3 | O68: =NA() -> 
A69: 11.5 | B69: 10 | C69: 1.5 | H69: 12.4 | I69: 10 | J69: 2.4 | L69: 6 | M69: 12 | O69: =NA() -> 
A70: 11.6 | B70: 10 | C70: 1.6 | H70: 12.2 | I70: 10 | J70: 2.2 | L70: 6 | M70: 12 | O70: =NA() -> 
A71: 11.6 | B71: 10 | C71: 1.6 | H71: 12 | I71: 10 | J71: 2 | L71: 6 | M71: 12 | O71: =NA() -> 
A72: 11.5 | B72: 10 | C72: 1.5 | H72: 11.9 | I72: 10 | J72: 1.9 | L72: 6 | M72: 12 | O72: =NA() -> 
A73: 11.5 | B73: 10 | C73: 1.5 | H73: 11.8 | I73: 10 | J73: 1.8 | L73: 6 | M73: 12 | O73: =NA() -> 
A74: 11.4 | B74: 10 | C74: 1.4 | H74: 11.7 | I74: 10 | J74: 1.7 | L74: 6 | M74: 12 | O74: =NA() -> 
A75: 11.3 | B75: 10 | C75: 1.3 | H75: 11.6 | I75: 10 | J75: 1.6 | L75: 6 | M75: 12 | O75: =NA() -> 
A76: 11.2 | B76: 10 | C76: 1.2 | H76: 11.5 | I76: 10 | J76: 1.5 | L76: 6 | M76: 12 | O76: =NA() -> 
A77: 11.2 | B77: 10 | C77: 1.2 | H77: 11.4 | I77: 10 | J77: 1.4 | L77: 6 | M77: 12 | O77: =NA() -> 
A78: 10.6 | B78: 10 | C78: 0.6 | H78: 11.3 | I78: 10 | J78: 1.3 | L78: 6 | M78: 12 | O78: =NA() -> 
A79: 10.7 | B79: 10 | C79: 0.7 | H79: 11.2 | I79: 10 | J79: 1.2 | L79: 6 | M79: 12 | O79: =NA() -> 
A80: 10.6 | B80: =IF(A80>10,10,A80) -> 10 | C80: =IF(A80<=10,NA(),IF(AND(A80>10,A80<20),A80-10,10)) -> 0.6 | D80: =IF(A80>20,A80-20,NA()) ->  | H80: 11 | I80: =IF(H80>10,10,H80) -> 10 | J80: =IF(H80<=10,NA(),IF(AND(H80>10,H80<20),H80-10,10)) -> 1 | K80: =IF(H80>20,H80-20,NA()) ->  | L80: 6 | M80: 12 | O80: =NA() -> 
A81: 10.5 | B81: 10 | C81: 0.5 | H81: 10.6 | I81: 10 | J81: 0.6 | L81: 6 | M81: 12 | O81: =NA() -> 
A82: 10.5 | B82: 10 | C82: 0.5 | H82: 10.6 | I82: 10 | J82: 0.6 | L82: 6 | M82: 12 | O82: =NA() -> 
A83: 10.5 | B83: 10 | C83: 0.5 | H83: 10.6 | I83: 10 | J83: 0.6 | L83: 6 | M83: 12 | O83: =NA() -> 
A84: 10.7 | B84: 10 | C84: 0.7 | H84: 10.5 | I84: 10 | J84: 0.5 | L84: 6 | M84: 12 | O84: =NA() -> 
A85: 10.7 | B85: 10 | C85: 0.7 | H85: 10.7 | I85: 10 | J85: 0.7 | L85: 6 | M85: 12 | O85: =NA() -> 
A86: 10.7 | B86: 10 | C86: 0.7 | H86: 10.5 | I86: 10 | J86: 0.5 | L86: 6 | M86: 12 | O86: =NA() -> 
A87: 10.7 | B87: 10 | C87: 0.7 | H87: 10.4 | I87: 10 | J87: 0.4 | L87: 6 | M87: 12 | O87: =NA() -> 
A88: 10.6 | B88: 10 | C88: 0.6 | H88: 10.4 | I88: 10 | J88: 0.4 | L88: 6 | M88: 12 | O88: =NA() -> 
A89: 10.6 | B89: 10 | C89: 0.6 | H89: 10.3 | I89: 10 | J89: 0.3 | L89: 6 | M89: 12 | O89: =NA() -> 
A90: 10.9 | B90: 10 | C90: 0.9 | H90: 10.4 | I90: 10 | J90: 0.4 | L90: 6 | M90: 12 | O90: =NA() -> 
A91: 10.9 | B91: 10 | C91: 0.9 | H91: 10.5 | I91: 10 | J91: 0.5 | L91: 6 | M91: 12 | O91: =NA() -> 
A92: 10.8 | B92: 10 | C92: 0.8 | H92: 10.7 | I92: 10 | J92: 0.7 | L92: 6 | M92: 12 | O92: =NA() -> 
A93: 10.7 | B93: 10 | C93: 0.7 | H93: 10.9 | I93: 10 | J93: 0.9 | L93: 6 | M93: 12 | O93: =NA() -> 
A94: 10.7 | B94: 10 | C94: 0.7 | H94: 11.4 | I94: 10 | J94: 1.4 | L94: 6 | M94: 12 | O94: =NA() -> 
A95: 10.7 | B95: 10 | C95: 0.7 | H95: 11.2 | I95: 10 | J95: 1.2 | L95: 6 | M95: 12 | O95: =NA() -> 
A96: 10.3 | B96: 10 | C96: 0.3 | H96: 11.3 | I96: 10 | J96: 1.3 | L96: 6 | M96: 12 | O96: =NA() -> 
A97: 10.3 | B97: 10 | C97: 0.3 | H97: 11.3 | I97: 10 | J97: 1.3 | L97: 6 | M97: 12 | O97: =NA() -> 
A98: 10.3 | B98: 10 | C98: 0.3 | H98: 11.4 | I98: 10 | J98: 1.4 | L98: 6 | M98: 12 | O98: =NA() -> 
A99: 10.3 | B99: 10 | C99: 0.3 | H99: 11.6 | I99: 10 | J99: 1.6 | L99: 6 | M99: 12 | O99: =NA() -> 
A100: 10.2 | B100: 10 | C100: 0.2 | H100: 11.6 | I100: 10 | J100: 1.6 | L100: 6 | M100: 12 | O100: =NA() -> 
A101: 10.2 | B101: 10 | C101: 0.2 | H101: 11.6 | I101: 10 | J101: 1.6 | L101: 6 | M101: 12 | O101: =NA() -> 
A102: 10 | B102: 10 | H102: 11.5 | I102: 10 | J102: 1.5 | L102: 6 | M102: 12 | O102: =NA() -> 
A103: 10 | B103: 10 | H103: 11.5 | I103: 10 | J103: 1.5 | L103: 6 | M103: 12 | O103: =NA() -> 
A104: 10 | B104: 10 | H104: 11.5 | I104: 10 | J104: 1.5 | L104: 6 | M104: 12 | O104: =NA() -> 
A105: 9.8 | B105: 9.8 | H105: 11.6 | I105: 10 | J105: 1.6 | L105: 6 | M105: 12 | O105: =NA() -> 
A106: 9.7 | B106: 9.7 | H106: 11.6 | I106: 10 | J106: 1.6 | L106: 6 | M106: 12 | O106: =NA() -> 
A107: 9.7 | B107: 9.7 | H107: 11.6 | I107: 10 | J107: 1.6 | L107: 6 | M107: 12 | O107: =NA() -> 
A108: 9.7 | B108: 9.7 | H108: 11.4 | I108: 10 | J108: 1.4 | L108: 6 | M108: 12 | O108: =NA() -> 
A109: 9.7 | B109: 9.7 | H109: 11.3 | I109: 10 | J109: 1.3 | L109: 6 | M109: 12 | O109: =NA() -> 
A110: 9.7 | B110: 9.7 | H110: 11.4 | I110: 10 | J110: 1.4 | L110: 6 | M110: 12 | O110: =NA() -> 
A111: 9.7 | B111: 9.7 | H111: 11.5 | I111: 10 | J111: 1.5 | L111: 6 | M111: 12 | O111: =NA() -> 
A112: 9.7 | B112: =IF(A112>10,10,A112) -> 9.7 | C112: =IF(A112<=10,NA(),IF(AND(A112>10,A112<20),A112-10,10)) ->  | D112: =IF(A112>20,A112-20,NA()) ->  | H112: 11.4 | I112: =IF(H112>10,10,H112) -> 10 | J112: =IF(H112<=10,NA(),IF(AND(H112>10,H112<20),H112-10,10)) -> 1.4 | K112: =IF(H112>20,H112-20,NA()) ->  | L112: 6 | M112: 12 | O112: =NA() -> 
A113: 9.7 | B113: 9.7 | H113: 11.4 | I113: 10 | J113: 1.4 | L113: 6 | M113: 12 | O113: =NA() -> 
A114: 9.9 | B114: 9.9 | H114: 11.3 | I114: 10 | J114: 1.3 | L114: 6 | M114: 12 | O114: =NA() -> 
A115: 9.9 | B115: 9.9 | H115: 11.2 | I115: 10 | J115: 1.2 | L115: 6 | M115: 12 | O115: =NA() -> 
A116: 9.9 | B116: 9.9 | H116: 11.3 | I116: 10 | J116: 1.3 | L116: 6 | M116: 12 | O116: =NA() -> 
A117: 11.1 | B117: 10 | C117: 1.1 | H117: 11.2 | I117: 10 | J117: 1.2 | L117: 6 | M117: 12 | O117: =NA() -> 
A118: 10.9 | B118: 10 | C118: 0.9 | H118: 11.1 | I118: 10 | J118: 1.1 | L118: 6 | M118: 12 | O118: =NA() -> 
A119: 10.8 | B119: 10 | C119: 0.8 | H119: 11 | I119: 10 | J119: 1 | L119: 6 | M119: 12 | O119: =NA() -> 
A120: 10.6 | B120: 10 | C120: 0.6 | H120: 11.2 | I120: 10 | J120: 1.2 | L120: 6 | M120: 12 | O120: =NA() -> 
A121: 10.5 | B121: 10 | C121: 0.5 | H121: 11.1 | I121: 10 | J121: 1.1 | L121: 6 | M121: 12 | O121: =NA() -> 
A122: 10.4 | B122: 10 | C122: 0.4 | H122: 11.1 | I122: 10 | J122: 1.1 | L122: 6 | M122: 12 | O122: =NA() -> 
A123: 10.4 | B123: 10 | C123: 0.4 | H123: 11 | I123: 10 | J123: 1 | L123: 6 | M123: 12 | O123: =NA() -> 
A124: 10.3 | B124: 10 | C124: 0.3 | H124: 11 | I124: 10 | J124: 1 | L124: 6 | M124: 12 | O124: =NA() -> 
A125: 10.3 | B125: 10 | C125: 0.3 | H125: 10.9 | I125: 10 | J125: 0.9 | L125: 6 | M125: 12 | O125: =NA() -> 
A126: 10.2 | B126: 10 | C126: 0.2 | H126: 10.7 | I126: 10 | J126: 0.7 | L126: 6 | M126: 12 | O126: =NA() -> 
A127: 10.3 | B127: 10 | C127: 0.3 | H127: 10.5 | I127: 10 | J127: 0.5 | L127: 6 | M127: 12 | O127: =NA() -> 
A128: 10.3 | B128: 10 | C128: 0.3 | H128: 10.3 | I128: 10 | J128: 0.3 | L128: 6 | M128: 12 | O128: =NA() -> 
A129: 10.1 | B129: 10 | C129: 0.1 | H129: 10 | I129: 10 | L129: 6 | M129: 12 | O129: =NA() -> 
A130: 10 | B130: 10 | H130: 9.8 | I130: 9.8 | L130: 6 | M130: 12 | O130: =NA() -> 
A131: 10 | B131: 10 | H131: 9.7 | I131: 9.7 | L131: 6 | M131: 12 | O131: =NA() -> 
A132: 9.9 | B132: 9.9 | H132: 9.6 | I132: 9.6 | L132: 6 | M132: 12 | O132: =NA() -> 
A133: 9.9 | B133: 9.9 | H133: 9.4 | I133: 9.4 | L133: 6 | M133: 12 | O133: =NA() -> 
A134: 9.9 | B134: 9.9 | H134: 9.2 | I134: 9.2 | L134: 6 | M134: 12 | O134: =NA() -> 
A135: 9.9 | B135: 9.9 | H135: 8.9 | I135: 8.9 | L135: 6 | M135: 12 | O135: =NA() -> 
A136: 10 | B136: 10 | H136: 8.7 | I136: 8.7 | L136: 6 | M136: 12 | O136: =NA() -> 
A137: 9.9 | B137: 9.9 | H137: 8.6 | I137: 8.6 | L137: 6 | M137: 12 | O137: =NA() -> 
A138: 9.8 | B138: 9.8 | H138: 8.7 | I138: 8.7 | L138: 6 | M138: 12 | O138: =NA() -> 
A139: 9.6 | B139: 9.6 | H139: 8.7 | I139: 8.7 | L139: 6 | M139: 12 | O139: =NA() -> 
A140: 9.5 | B140: 9.5 | H140: 8.7 | I140: 8.7 | L140: 6 | M140: 12 | O140: =NA() -> 
A141: 9.4 | B141: 9.4 | H141: 8.7 | I141: 8.7 | L141: 6 | M141: 12 | O141: =NA() -> 
A142: 9.4 | B142: 9.4 | H142: 8.7 | I142: 8.7 | L142: 6 | M142: 12 | O142: =NA() -> 
A143: 9.2 | B143: 9.2 | H143: 8.7 | I143: 8.7 | L143: 6 | M143: 12 | O143: =NA() -> 
A144: 9.1 | B144: =IF(A144>10,10,A144) -> 9.1 | C144: =IF(A144<=10,NA(),IF(AND(A144>10,A144<20),A144-10,10)) ->  | D144: =IF(A144>20,A144-20,NA()) ->  | H144: 8.6 | I144: =IF(H144>10,10,H144) -> 8.6 | J144: =IF(H144<=10,NA(),IF(AND(H144>10,H144<20),H144-10,10)) ->  | K144: =IF(H144>20,H144-20,NA()) ->  | L144: 6 | M144: 12 | O144: =NA() -> 
A145: 9 | B145: 9 | H145: 8.6 | I145: 8.6 | L145: 6 | M145: 12 | O145: =NA() -> 
A146: 8.8 | B146: 8.8 | H146: 8.5 | I146: 8.5 | L146: 6 | M146: 12 | O146: =NA() -> 
A147: 8.7 | B147: 8.7 | H147: 8.5 | I147: 8.5 | L147: 6 | M147: 12 | O147: =NA() -> 
A148: 8.5 | B148: 8.5 | H148: 8.5 | I148: 8.5 | L148: 6 | M148: 12 | O148: =NA() -> 
A149: 8.4 | B149: 8.4 | H149: 8.4 | I149: 8.4 | L149: 6 | M149: 12 | O149: =NA() -> 
A150: 8.4 | B150: 8.4 | H150: 8.4 | I150: 8.4 | L150: 6 | M150: 12 | O150: =NA() -> 
A151: 8.8 | B151: 8.8 | H151: 8.3 | I151: 8.3 | L151: 6 | M151: 12 | O151: =NA() -> 
A152: 8.8 | B152: 8.8 | H152: 8.3 | I152: 8.3 | L152: 6 | M152: 12 | O152: =NA() -> 
A153: 8.7 | B153: 8.7 | H153: 8.2 | I153: 8.2 | L153: 6 | M153: 12 | O153: =NA() -> 
A154: 8.7 | B154: 8.7 | H154: 8.1 | I154: 8.1 | L154: 6 | M154: 12 | O154: =NA() -> 
A155: 8.7 | B155: 8.7 | H155: 8 | I155: 8 | L155: 6 | M155: 12 | O155: =NA() -> 
A156: 8.5 | B156: 8.5 | H156: 8 | I156: 8 | L156: 6 | M156: 12 | O156: =NA() -> 
A157: 8.3 | B157: 8.3 | H157: 7.9 | I157: 7.9 | L157: 6 | M157: 12 | O157: =NA() -> 
A158: 8.2 | B158: 8.2 | H158: 8.1 | I158: 8.1 | L158: 6 | M158: 12 | O158: =NA() -> 
A159: 8.1 | B159: 8.1 | H159: 8.3 | I159: 8.3 | L159: 6 | M159: 12 | O159: =NA() -> 
A160: 8.1 | B160: 8.1 | H160: 8.4 | I160: 8.4 | L160: 6 | M160: 12 | O160: =NA() -> 
A161: 8.1 | B161: 8.1 | H161: 8.5 | I161: 8.5 | L161: 6 | M161: 12 | O161: =NA() -> 
A162: 8.1 | B162: 8.1 | H162: 8.5 | I162: 8.5 | L162: 6 | M162: 12 | O162: =NA() -> 
A163: 7.9 | B163: 7.9 | H163: 8.6 | I163: 8.6 | L163: 6 | M163: 12 | O163: =NA() -> 
A164: 8 | B164: 8 | H164: 8.8 | I164: 8.8 | L164: 6 | M164: 12 | O164: =NA() -> 
A165: 7.9 | B165: 7.9 | H165: 9 | I165: 9 | L165: 6 | M165: 12 | O165: =NA() -> 
A166: 8 | B166: 8 | H166: 9.2 | I166: 9.2 | L166: 6 | M166: 12 | O166: =NA() -> 
A167: 7.9 | B167: 7.9 | H167: 9.3 | I167: 9.3 | L167: 6 | M167: 12 | O167: =NA() -> 
A168: 7.8 | B168: 7.8 | H168: 9.9 | I168: 9.9 | L168: 6 | M168: 12 | O168: =NA() -> 
A169: 7.3 | B169: 7.3 | H169: 10.5 | I169: 10 | J169: 0.5 | L169: 6 | M169: 12 | O169: =NA() -> 
A170: 7.3 | B170: 7.3 | H170: 11 | I170: 10 | J170: 1 | L170: 6 | M170: 12 | O170: =NA() -> 
A171: 7.4 | B171: 7.4 | H171: 11.4 | I171: 10 | J171: 1.4 | L171: 6 | M171: 12 | O171: =NA() -> 
A172: 7.5 | B172: 7.5 | H172: 11.8 | I172: 10 | J172: 1.8 | L172: 6 | M172: 12 | O172: =NA() -> 
A173: 7.5 | B173: 7.5 | H173: 12.3 | I173: 10 | J173: 2.3 | L173: 6 | M173: 12 | O173: =NA() -> 
A174: 7.5 | B174: 7.5 | H174: 13.2 | I174: 10 | J174: 3.2 | L174: 6 | M174: 12 | O174: =NA() -> 
A175: 7.8 | B175: 7.8 | H175: 14 | I175: 10 | J175: 4 | L175: 6 | M175: 12 | O175: =NA() -> 
A176: 8.6 | B176: =IF(A176>10,10,A176) -> 8.6 | C176: =IF(A176<=10,NA(),IF(AND(A176>10,A176<20),A176-10,10)) ->  | D176: =IF(A176>20,A176-20,NA()) ->  | H176: 14.9 | I176: =IF(H176>10,10,H176) -> 10 | J176: =IF(H176<=10,NA(),IF(AND(H176>10,H176<20),H176-10,10)) -> 4.9 | K176: =IF(H176>20,H176-20,NA()) ->  | L176: 6 | M176: 12 | O176: =NA() -> 
A177: 8.9 | B177: 8.9 | H177: 15.9 | I177: 10 | J177: 5.9 | L177: 6 | M177: 12 | O177: =NA() -> 
A178: 9 | B178: 9 | H178: 16.7 | I178: 10 | J178: 6.7 | L178: 6 | M178: 12 | O178: =NA() -> 
A179: 9 | B179: 9 | H179: 17.4 | I179: 10 | J179: 7.4 | L179: 6 | M179: 12 | O179: =NA() -> 
A180: 9.1 | B180: 9.1 | H180: 17.7 | I180: 10 | J180: 7.7 | L180: 6 | M180: 12 | O180: =NA() -> 
A181: 9.1 | B181: 9.1 | H181: 17.9 | I181: 10 | J181: 7.9 | L181: 6 | M181: 12 | O181: =NA() -> 
A182: 9.3 | B182: 9.3 | H182: 18 | I182: 10 | J182: 8 | L182: 6 | M182: 12 | O182: =NA() -> 
A183: 9.5 | B183: 9.5 | H183: 18.2 | I183: 10 | J183: 8.2 | L183: 6 | M183: 12 | O183: =NA() -> 
A184: 9.5 | B184: 9.5 | H184: 18.5 | I184: 10 | J184: 8.5 | L184: 6 | M184: 12 | O184: =NA() -> 
A185: 9.7 | B185: 9.7 | H185: 18.8 | I185: 10 | J185: 8.8 | L185: 6 | M185: 12 | O185: =NA() -> 
A186: 9.9 | B186: 9.9 | H186: 18.9 | I186: 10 | J186: 8.9 | L186: 6 | M186: 12 | O186: =NA() -> 
A187: 10.3 | B187: 10 | C187: 0.3 | H187: 19 | I187: 10 | J187: 9 | L187: 6 | M187: 12 | O187: 30
A188: 10.5 | B188: 10 | C188: 0.5 | H188: 19.2 | I188: 10 | J188: 9.2 | L188: 6 | M188: 12 | O188: 30
A189: 10.9 | B189: 10 | C189: 0.9 | H189: 19.2 | I189: 10 | J189: 9.2 | L189: 6 | M189: 12 | O189: 30
A190: 11.2 | B190: 10 | C190: 1.2 | H190: 19.4 | I190: 10 | J190: 9.4 | L190: 6 | M190: 12 | O190: 30
A191: 11.5 | B191: 10 | C191: 1.5 | H191: 19.6 | I191: 10 | J191: 9.6 | L191: 6 | M191: 12 | O191: 30
A192: 11.8 | B192: 10 | C192: 1.8 | H192: 19.9 | I192: 10 | J192: 9.9 | L192: 6 | M192: 12 | O192: 30
A193: 12.1 | B193: 10 | C193: 2.1 | H193: 20.1 | I193: 10 | J193: 10 | K193: 0.1 | L193: 6 | M193: 12 | N193: =IF(A193>12,A193,NA()) -> 12.1 | O193: 30
A194: 12.3 | B194: 10 | C194: 2.3 | H194: 20.2 | I194: 10 | J194: 10 | K194: 0.2 | L194: 6 | M194: 12 | N194: 12.3 | O194: 30
A195: 12.5 | B195: 10 | C195: 2.5 | H195: 20.2 | I195: 10 | J195: 10 | K195: 0.2 | L195: 6 | M195: 12 | N195: 12.5 | O195: 30
A196: 12.8 | B196: 10 | C196: 2.8 | H196: 20.3 | I196: 10 | J196: 10 | K196: 0.3 | L196: 6 | M196: 12 | N196: 12.8 | O196: 30
A197: 13.2 | B197: 10 | C197: 3.2 | H197: 20.4 | I197: 10 | J197: 10 | K197: 0.4 | L197: 6 | M197: 12 | N197: 13.2 | O197: 30
A198: 13.8 | B198: 10 | C198: 3.8 | H198: 20.4 | I198: 10 | J198: 10 | K198: 0.4 | L198: 6 | M198: 12 | N198: 13.8 | O198: 30
A199: 14.1 | B199: 10 | C199: 4.1 | H199: 20.5 | I199: 10 | J199: 10 | K199: 0.5 | L199: 6 | M199: 12 | N199: 14.1 | O199: 30
A200: 14.5 | B200: 10 | C200: 4.5 | H200: 20.5 | I200: 10 | J200: 10 | K200: 0.5 | L200: 6 | M200: 12 | N200: 14.5 | O200: 30
A201: 14.8 | B201: 10 | C201: 4.8 | H201: 20.6 | I201: 10 | J201: 10 | K201: 0.6 | L201: 6 | M201: 12 | N201: 14.8 | O201: 30
A202: 15.3 | B202: 10 | C202: 5.3 | H202: 20.7 | I202: 10 | J202: 10 | K202: 0.7 | L202: 6 | M202: 12 | N202: 15.3 | O202: 30
A203: 15.8 | B203: 10 | C203: 5.8 | H203: 20.8 | I203: 10 | J203: 10 | K203: 0.8 | L203: 6 | M203: 12 | N203: 15.8 | O203: 30
A204: 16.2 | B204: 10 | C204: 6.2 | H204: 20.8 | I204: 10 | J204: 10 | K204: 0.8 | L204: 6 | M204: 12 | N204: 16.2 | O204: 30
A205: 16.7 | B205: 10 | C205: 6.7 | H205: 20.9 | I205: 10 | J205: 10 | K205: 0.9 | L205: 6 | M205: 12 | N205: 16.7 | O205: 30
A206: 17.1 | B206: 10 | C206: 7.1 | H206: 21.2 | I206: 10 | J206: 10 | K206: 1.2 | L206: 6 | M206: 12 | N206: 17.1 | O206: 30
A207: 17.7 | B207: 10 | C207: 7.7 | H207: 21.6 | I207: 10 | J207: 10 | K207: 1.6 | L207: 6 | M207: 12 | N207: 17.7 | O207: 30
... 224 more rows

Sheet 7.3
B1: Unemployment rate | D1: Job Vacancy Rate | F1: Unemployment rate | H1: Job Vacancy Rate
A2: TIME/GEO | B2: EU-28 | C2: EA-19 | D2: EU-28 | E2: EA-19 | F2: EU-28 | G2: EA-19 | H2: EU-28 | I2: EA-19 | P2: UNEMPLOYMENT RATE (QUARTERLY DATA) | T2: JOB VACANCY RATE (QUARTERLY DATA)
A3: 2006Q1 | B3: 8.9 | C3: 9 | D3: 1.8 | E3: 1.8
A4: 2006Q2 | B4: 8.1 | C4: 8.2 | D4: 1.9 | E4: 1.9 | K4: 45 degree slope
A5: 2006Q3 | B5: 7.8 | C5: 7.8 | D5: 2 | E5: 2.1 | K5: 5 | L5: =K5-$M$5 -> -2.8 | M5: 7.8
A6: 2006Q4 | B6: 7.8 | C6: 8 | D6: 2.1 | E6: 2.3 | F6: =AVERAGE(B3:B6) -> 8.15 | G6: =AVERAGE(C3:C6) -> 8.25 | H6: =AVERAGE(D3:D6) -> 1.95 | I6: =AVERAGE(E3:E6) -> 2.025 | J6: =DATE(LEFT(A6,4),RIGHT(A6,1)*3,30) -> 2006-12-30 | K6: 6 | L6: -1.8 | M6: =SLOPE(G6:G40,I6:I40) -> -4.643774696
A7: 2007Q1 | B7: 7.8 | C7: 8 | D7: 2.2 | E7: 2.4 | F7: 7.875 | G7: 8 | H7: 2.05 | I7: 2.175 | J7: 2007-03-30 | K7: 7 | L7: -0.8
A8: 2007Q2 | B8: 7 | C8: 7.3 | D8: 2.1 | E8: 2.1 | F8: 7.6 | G8: 7.775 | H8: 2.1 | I8: 2.225 | J8: 2007-06-30 | K8: 8 | L8: 0.2
A9: 2007Q3 | B9: 6.9 | C9: 7.1 | D9: 2.2 | E9: 2.1 | F9: 7.375 | G9: 7.6 | H9: 2.15 | I9: 2.225 | J9: 2007-09-30 | K9: 9 | L9: 1.2
A10: 2007Q4 | B10: 6.9 | C10: 7.2 | D10: 2.1 | E10: 2.1 | F10: 7.15 | G10: 7.4 | H10: 2.15 | I10: 2.175 | J10: 2007-12-30 | K10: 10 | L10: 2.2
A11: 2008Q1 | B11: 7.1 | C11: 7.5 | D11: 2.1 | E11: 2.1 | F11: 6.975 | G11: 7.275 | H11: 2.125 | I11: 2.1 | J11: 2008-03-30 | K11: 11 | L11: 3.2
A12: 2008Q2 | B12: 6.8 | C12: 7.3 | D12: 2 | E12: 2 | F12: 6.925 | G12: 7.275 | H12: 2.1 | I12: 2.075 | J12: 2008-06-30
A13: 2008Q3 | B13: 6.7 | C13: 7.2 | D13: 1.9 | E13: 1.8 | F13: 6.875 | G13: 7.3 | H13: 2.025 | I13: 2 | J13: 2008-09-30
A14: 2008Q4 | B14: 7.3 | C14: 7.9 | D14: 1.7 | E14: 1.8 | F14: 6.975 | G14: 7.475 | H14: 1.925 | I14: 1.925 | J14: 2008-12-30 | P14: BEVERIDGE CURVE 2006—2015
A15: 2009Q1 | B15: 8.7 | C15: 9.3 | D15: 1.4 | E15: 1.5 | F15: 7.375 | G15: 7.925 | H15: 1.75 | I15: 1.775 | J15: 2009-03-30
A16: 2009Q2 | B16: 8.7 | C16: 9.4 | D16: 1.4 | E16: 1.5 | F16: 7.85 | G16: 8.45 | H16: 1.6 | I16: 1.65 | J16: 2009-06-30
A17: 2009Q3 | B17: 8.9 | C17: 9.4 | D17: 1.3 | E17: 1.4 | F17: 8.4 | G17: 9 | H17: 1.45 | I17: 1.55 | J17: 2009-09-30
A18: 2009Q4 | B18: 9.2 | C18: 9.9 | D18: 1.2 | E18: 1.3 | F18: 8.875 | G18: 9.5 | H18: 1.325 | I18: 1.425 | J18: 2009-12-30
A19: 2010Q1 | B19: 10 | C19: 10.6 | D19: 1.3 | E19: 1.3 | F19: 9.2 | G19: 9.825 | H19: 1.3 | I19: 1.375 | J19: 2010-03-30
A20: 2010Q2 | B20: 9.5 | C20: 10 | D20: 1.4 | E20: 1.4 | F20: 9.4 | G20: 9.975 | H20: 1.3 | I20: 1.35 | J20: 2010-06-30
A21: 2010Q3 | B21: 9.2 | C21: 9.7 | D21: 1.3 | E21: 1.4 | F21: 9.475 | G21: 10.05 | H21: 1.3 | I21: 1.35 | J21: 2010-09-30
A22: 2010Q4 | B22: 9.5 | C22: 10 | D22: 1.5 | E22: 1.6 | F22: 9.55 | G22: 10.075 | H22: 1.375 | I22: 1.425 | J22: 2010-12-30
A23: 2011Q1 | B23: 9.8 | C23: 10.4 | D23: 1.6 | E23: 1.8 | F23: 9.5 | G23: 10.025 | H23: 1.45 | I23: 1.55 | J23: 2011-03-30
A24: 2011Q2 | B24: 9.3 | C24: 9.8 | D24: 1.5 | E24: 1.6 | F24: 9.45 | G24: 9.975 | H24: 1.475 | I24: 1.6 | J24: 2011-06-30
A25: 2011Q3 | B25: 9.4 | C25: 9.8 | D25: 1.5 | E25: 1.6 | F25: 9.5 | G25: 10 | H25: 1.525 | I25: 1.65 | J25: 2011-09-30
A26: 2011Q4 | B26: 9.9 | C26: 10.6 | D26: 1.5 | E26: 1.7 | F26: 9.6 | G26: 10.15 | H26: 1.525 | I26: 1.675 | J26: 2011-12-30
A27: 2012Q1 | B27: 10.6 | C27: 11.4 | D27: 1.5 | E27: 1.7 | F27: 9.8 | G27: 10.4 | H27: 1.5 | I27: 1.65 | J27: 2012-03-30
A28: 2012Q2 | B28: 10.3 | C28: 11.1 | D28: 1.5 | E28: 1.6 | F28: 10.05 | G28: 10.725 | H28: 1.5 | I28: 1.65 | J28: 2012-06-30
A29: 2012Q3 | B29: 10.2 | C29: 11 | D29: 1.4 | E29: 1.4 | F29: 10.25 | G29: 11.025 | H29: 1.475 | I29: 1.6 | J29: 2012-09-30
A30: 2012Q4 | B30: 10.7 | C30: 11.8 | D30: 1.4 | E30: 1.5 | F30: 10.45 | G30: 11.325 | H30: 1.45 | I30: 1.55 | J30: 2012-12-30
A31: 2013Q1 | B31: 11.4 | C31: 12.5 | D31: 1.5 | E31: 1.6 | F31: 10.65 | G31: 11.6 | H31: 1.45 | I31: 1.525 | J31: 2013-03-30
A32: 2013Q2 | B32: 10.8 | C32: 11.9 | D32: 1.5 | E32: 1.5 | F32: 10.775 | G32: 11.8 | H32: 1.45 | I32: 1.5 | J32: 2013-06-30
A33: 2013Q3 | B33: 10.5 | C33: 11.5 | D33: 1.4 | E33: 1.4 | F33: 10.85 | G33: 11.925 | H33: 1.45 | I33: 1.5 | J33: 2013-09-30
A34: 2013Q4 | B34: 10.6 | C34: 11.9 | D34: 1.5 | E34: 1.6 | F34: 10.825 | G34: 11.95 | H34: 1.475 | I34: 1.525 | J34: 2013-12-30
A35: 2014Q1 | B35: 11 | C35: 12.4 | D35: 1.6 | E35: 1.7 | F35: 10.725 | G35: 11.925 | H35: 1.5 | I35: 1.55 | J35: 2014-03-30
A36: 2014Q2 | B36: 10.1 | C36: 11.5 | D36: 1.6 | E36: 1.6 | F36: 10.55 | G36: 11.825 | H36: 1.525 | I36: 1.575 | J36: 2014-06-30
A37: 2014Q3 | B37: 9.8 | C37: 11.1 | D37: 1.6 | E37: 1.6 | F37: 10.375 | G37: 11.725 | H37: 1.575 | I37: 1.625 | J37: 2014-09-30 | P37: Source: Eurostat
A38: 2014Q4 | B38: 10 | C38: 11.6 | D38: 1.7 | E38: 1.8 | F38: 10.225 | G38: 11.65 | H38: 1.625 | I38: 1.675 | J38: 2014-12-30
A39: 2015Q1 | B39: 10.2 | C39: 11.7 | D39: 1.7 | E39: 1.7 | F39: 10.025 | G39: 11.475 | H39: 1.65 | I39: 1.675 | J39: 2015-03-30
A40: 2015Q2 | B40: 9.5 | C40: 10.9 | D40: 1.7 | E40: 1.7 | F40: 9.875 | G40: 11.325 | H40: 1.675 | I40: 1.7 | J40: 2015-06-30
